bitfinex/quotes_ETHUSD_20240702
["timestamp","ask_amount","ask_price","bid_price","bid_amount"]
[1719894000719,2.88486,3466.4,3466.0,0.55]
[1719894001025,2.88486,3466.4,3466.2,0.817]
[1719894010639,2.88476,3466.5,3466.2,0.817]
[1719894011048,2.88476,3466.5,3466.4,0.817]
[1719894012031,2.88487,3466.4,3466.0,0.55]
[1719894012233,2.88487,3466.4,3466.1,0.817]
[1719894012552,2.88494,3466.3,3465.9,2.3143]
[1719894012717,2.88494,3466.3,3465.9,3.1313]
[1719894012922,2.88494,3466.3,3466.1,0.817]
[1719894014862,2.885,3466.2,3465.5,5.14956]
[1719894015060,2.885,3466.2,3465.8,0.817]
[1719894015362,2.8851,3466.1,3465.8,0.817]
[1719894016645,2.8851,3466.1,3465.9,0.55]
[1719894017177,2.4528,3466.4,3447.1,3.1202842]
[1719894017178,2.8853,3465.9,3465.3,2.4031]
[1719894017375,2.8853,3465.9,3465.4,0.55]
[1719894017376,2.88535,3465.8,3465.4,0.55]
[1719894018434,2.88551,3465.6,3465.0,2.3771]
[1719894018636,2.88551,3465.6,3465.4,0.817]
[1719894021468,2.88559,3465.5,3465.0,2.3771]
[1719894021689,2.88551,3465.6,3465.2,0.817]
[1719894022332,2.88572,3465.4,3465.2,0.817]
[1719894022944,2.88575,3465.3,3465.2,0.817]
[1719894027274,2.88565,3465.5,3465.2,0.817]
[1719894028082,2.88567,3465.4,3465.2,0.817]
[1719894032016,2.88567,3465.4,3465.3,0.05380002]
[1719894032420,2.88567,3465.4,3465.2,0.817]
[1719894032592,2.88567,3465.4,3465.3,0.05380002]
[1719894033032,2.88567,3465.4,3465.2,0.817]
[1719894033201,2.88567,3465.4,3465.3,0.05380002]
[1719894033530,2.88567,3465.4,3465.2,0.817]
[1719894033728,2.88567,3465.4,3465.3,0.05380002]
[1719894034101,2.88567,3465.4,3465.2,0.817]
[1719894034403,2.88567,3465.4,3465.3,0.05380002]
[1719894034787,2.88567,3465.4,3465.2,0.817]
[1719894034980,2.88567,3465.4,3465.3,0.05380002]
[1719894035412,2.88567,3465.4,3465.2,0.817]
[1719894035622,2.88567,3465.4,3465.3,0.05380002]
[1719894035989,2.88567,3465.4,3465.2,0.817]
[1719894036202,2.88567,3465.4,3465.3,0.05380002]
[1719894036527,2.88567,3465.4,3465.2,0.817]
[1719894036734,2.88567,3465.4,3465.3,0.05380002]
[1719894037225,2.88567,3465.4,3465.2,0.817]
[1719894037383,2.88567,3465.4,3465.3,0.05380002]
[1719894037821,2.88567,3465.4,3465.2,0.817]
[1719894038038,2.88567,3465.4,3465.3,0.05380002]
[1719894038389,2.88567,3465.4,3465.2,0.817]
[1719894038588,2.88567,3465.4,3465.3,0.05380002]
[1719894039292,2.88567,3465.4,3465.2,0.817]
[1719894039493,2.88567,3465.4,3465.3,0.05380002]
[1719894039692,2.88567,3465.4,3465.2,0.817]
[1719894039930,2.88567,3465.4,3465.3,0.05380002]
[1719894040090,2.88567,3465.4,3465.2,0.817]
[1719894040291,2.88567,3465.4,3465.3,0.05380002]
[1719894040504,2.88567,3465.4,3465.2,0.817]
[1719894040705,2.88567,3465.4,3465.3,0.05380002]
[1719894040909,2.88575,3465.3,3465.2,0.817]
[1719894041125,2.88575,3465.3,3465.2,0.05380002]
[1719894041301,8.199,3465.3,3465.2,0.05380002]
[1719894041513,2.88598,3465.1,3464.8,0.817]
[1719894041720,2.88598,3465.1,3464.9,0.87078312]
[1719894042704,2.88598,3465.1,3464.9,0.05378312]
[1719894043033,2.886,3465.0,3464.7,0.817]
[1719894043328,2.886,3465.0,3464.9,0.817]
[1719894045042,2.88592,3465.1,3464.9,0.817]
[1719894046076,2.88592,3465.1,3465.0,0.05019645]
[1719894048225,5.77184,3465.1,3465.0,0.05019645]
[1719894048604,5.77184,3465.1,3464.6,0.817]
[1719894048605,2.88613,3464.9,3464.6,0.817]
[1719894049000,2.88613,3464.9,3464.7,0.05019645]
[1719894051303,2.88616,3464.8,3464.7,0.05019645]
[1719894054203,3.463389,3464.8,3464.7,0.05019645]
[1719894054402,2.8863,3464.7,3464.2,0.817]
[1719894054647,2.8863,3464.7,3464.3,0.55]
[1719894056260,5.37763,3464.9,3464.2,0.817]
[1719894056555,2.8865,3464.4,3464.2,0.817]
[1719894060973,2.8865,3464.4,3464.3,0.05035529]
[1719894061664,2.88634,3464.6,3464.3,0.05035529]
[1719894061865,2.88641,3464.5,3464.3,0.05035529]
[1719894062439,2.8862,3464.8,3464.4,0.817]
[1719894062634,2.8862,3464.8,3464.4,1.13438553]
[1719894063169,2.8862,3464.8,3464.5,0.05035529]
[1719894064774,2.8862,3464.8,3464.5,0.817]
[1719894064943,2.886,3465.0,3464.6,0.05047699]
[1719894065145,5.88548,3465.7,3464.7,2.8038]
[1719894065146,2.88572,3465.4,3464.7,2.8038]
[1719894065383,2.88572,3465.4,3465.1,0.817]
[1719894065939,2.88575,3465.3,3465.2,0.05047699]
[1719894066142,2.88564,3465.5,3465.2,0.05047699]
[1719894066357,2.88564,3465.5,3465.3,0.817]
[1719894067233,2.88564,3465.5,3465.4,0.05005426]
[1719894069047,2.88564,3465.5,3465.1,0.817]
[1719894069252,2.88564,3465.5,3465.4,0.04995961]
[1719894069439,2.88564,3465.5,3465.1,0.817]
[1719894070181,2.88564,3465.5,3465.2,0.04995961]
[1719894073063,2.88564,3465.5,3465.2,0.02195961]
[1719894073247,2.88564,3465.5,3465.2,0.04902628]
[1719894074261,2.88542,3465.7,3465.2,0.04902628]
[1719894075088,2.88556,3465.6,3465.2,0.04902628]
[1719894077808,2.88559,3465.5,3465.2,0.04902628]
[1719894079681,2.88551,3465.6,3465.2,0.04902628]
[1719894079968,2.88538,3465.8,3465.3,0.817]
[1719894080173,2.88538,3465.8,3465.4,0.04888091]
[1719894081583,2.88544,3465.7,3465.4,0.04888091]
[1719894081913,2.88544,3465.7,3465.1,3.7606123]
[1719894082107,2.88544,3465.7,3465.5,0.04883697]
[1719894082406,2.88544,3465.7,3465.6,0.04883697]
[1719894082909,2.88544,3465.7,3465.1,3.7606123]
[1719894083093,2.88544,3465.7,3465.6,0.04883359]
[1719894083295,2.88544,3465.7,3465.1,0.8747123]
[1719894083480,2.88544,3465.7,3465.6,0.04883359]
[1719894083681,2.88544,3465.7,3465.1,0.8747123]
[1719894084177,2.88544,3465.7,3465.2,0.04883359]
[1719894084602,5.20071,3465.6,3465.2,0.04883359]
[1719894087793,2.88551,3465.6,3465.2,0.04883359]
[1719894089118,2.88539,3465.8,3465.3,0.817]
[1719894089301,2.88547,3465.7,3465.3,3.3058]
[1719894089505,2.88547,3465.7,3465.4,0.04884375]
[1719894091622,2.88551,3465.6,3465.4,0.04884375]
[1719894092117,2.88551,3465.6,3465.1,0.87471231]
[1719894092304,2.88551,3465.6,3465.5,0.04881671]
[1719894092482,3.692348,3465.6,3465.1,0.87471231]
[1719894092680,2.88551,3465.6,3465.5,0.04884037]
[1719894093227,2.88551,3465.6,3465.1,0.87471231]
[1719894093398,2.88551,3465.6,3465.5,0.04884037]
[1719894093591,2.88558,3465.5,3465.1,0.87471231]
[1719894093797,2.88558,3465.5,3465.2,0.04884037]
[1719894099018,2.4187,3465.4,3464.4,7.43]
[1719894099219,2.4187,3465.4,3463.8,2.73389547]
[1719894099220,2.88655,3464.4,3463.8,2.4027]
[1719894099585,2.88655,3464.4,3463.9,0.817]
[1719894099791,2.88655,3464.4,3463.9,1.1678871]
[1719894100008,2.88655,3464.4,3464.1,0.817]
[1719894100213,2.88661,3464.3,3464.1,0.817]
[1719894101434,2.88655,3464.4,3463.9,1.1678871]
[1719894101435,2.88666,3464.2,3463.9,1.1678871]
[1719894106850,2.88666,3464.2,3464.0,0.03584034]
[1719894108269,2.88666,3464.2,3463.9,0.55]
[1719894108476,2.88666,3464.2,3464.1,0.03584034]
[1719894108984,2.88666,3464.2,3463.9,0.55]
[1719894109263,2.88666,3464.2,3464.0,0.03584034]
[1719894109631,2.88666,3464.2,3463.8,0.55]
[1719894109830,2.88666,3464.2,3464.1,0.03584034]
[1719894110042,2.88666,3464.2,3463.8,0.55]
[1719894110271,2.88666,3464.2,3464.1,0.03621174]
[1719894110444,2.88666,3464.2,3463.8,0.55]
[1719894110646,2.88676,3464.1,3463.8,0.55]
[1719894110956,2.88676,3464.1,3463.7,1.367]
[1719894111584,2.88676,3464.1,3463.7,0.55]
[1719894111934,2.88691,3464.0,3463.4,2.3235]
[1719894112156,2.88691,3464.0,3463.5,0.55]
[1719894112375,2.88705,3463.8,3463.5,0.55]
[1719894112769,2.88705,3463.8,3463.4,0.55]
[1719894113669,2.88705,3463.8,3463.5,0.817]
[1719894116384,5.38105,3463.8,3463.4,0.55]
[1719894116565,5.38105,3463.8,3463.4,0.817]
[1719894116877,2.88716,3463.6,3463.3,0.55]
[1719894117287,2.88716,3463.6,3463.2,0.55]
[1719894121063,2.88716,3463.6,3463.3,0.02720914]
[1719894121454,2.88716,3463.6,3463.3,0.817]
[1719894121663,2.88716,3463.6,3463.4,0.57720914]
[1719894124687,2.88716,3463.6,3463.5,0.817]
[1719894125047,2.88716,3463.6,3463.5,0.84441521]
[1719894132087,2.88716,3463.6,3463.5,0.02741521]
[1719894132466,2.88716,3463.6,3463.4,1.367]
[1719894132789,2.88716,3463.6,3463.5,0.02741521]
[1719894133001,2.88716,3463.6,3463.4,1.367]
[1719894133305,2.88716,3463.6,3463.5,0.02741521]
[1719894133595,2.88716,3463.6,3463.4,1.367]
[1719894133758,2.88716,3463.6,3463.5,0.02741521]
[1719894133959,2.88716,3463.6,3463.4,1.367]
[1719894134159,2.88716,3463.6,3463.5,0.02741521]
[1719894134492,2.88716,3463.6,3463.4,1.367]
[1719894134697,2.88716,3463.6,3463.5,0.02741521]
[1719894135395,2.88716,3463.6,3463.4,1.367]
[1719894135694,2.88716,3463.6,3463.5,0.02741521]
[1719894136394,2.88716,3463.6,3463.4,1.367]
[1719894136605,2.88716,3463.6,3463.5,0.02741521]
[1719894136808,2.88716,3463.6,3463.4,1.367]
[1719894136977,2.88716,3463.6,3463.5,0.02737804]
[1719894137298,2.88716,3463.6,3463.4,1.367]
[1719894137503,2.88716,3463.6,3463.5,0.02737804]
[1719894137909,2.88716,3463.6,3463.4,1.367]
[1719894138068,2.88716,3463.6,3463.5,0.02737804]
[1719894138414,2.88716,3463.6,3463.4,1.367]
[1719894138610,2.88716,3463.6,3463.5,0.02737804]
[1719894138903,2.88716,3463.6,3463.4,1.367]
[1719894139206,2.88716,3463.6,3463.5,0.02737804]
[1719894139502,5.32356,3463.6,3462.8,2.4182]
[1719894139672,8.21081,3463.6,3463.5,0.02737804]
[1719894139872,2.88738,3463.4,3463.0,0.817]
[1719894140076,2.88738,3463.4,3463.1,0.55]
[1719894140278,2.88742,3463.3,3463.1,0.02737804]
[1719894146369,2.8875,3463.2,3463.1,0.02737804]
[1719894148206,2.8875,3463.2,3462.8,0.55]
[1719894148365,2.8875,3463.2,3463.0,0.817]
[1719894148794,2.8875,3463.2,3463.1,0.02659883]
[1719894150626,5.758188,3463.2,3463.1,0.02659883]
[1719894150792,2.88762,3463.1,3462.8,0.55]
[1719894150979,2.88762,3463.1,3462.9,0.02566181]
[1719894151182,2.88762,3463.1,3462.8,0.817]
[1719894151485,2.88762,3463.1,3462.9,0.55]
[1719894151929,2.88768,3463.0,3462.5,2.409]
[1719894152216,2.88768,3463.0,3462.7,0.817]
[1719894152414,2.88768,3463.0,3462.8,0.55]
[1719894154221,2.88756,3463.2,3462.8,0.55]
[1719894154519,2.8876,3463.1,3462.9,0.817]
[1719894157203,5.77493,3463.3,3462.9,0.817]
[1719894157404,2.88745,3463.3,3462.9,0.817]
[1719894157713,2.88756,3463.2,3462.9,0.817]
[1719894158705,2.88759,3463.1,3462.9,0.817]
[1719894159608,2.88759,3463.1,3462.8,0.55]
[1719894161123,2.88759,3463.1,3462.7,0.817]
[1719894161286,2.88759,3463.1,3462.8,0.55]
[1719894179442,5.77494,3463.3,3462.8,0.55]
[1719894179644,2.88751,3463.2,3462.8,0.55]
[1719894180454,2.88745,3463.3,3462.8,0.55]
[1719894180639,2.88745,3463.3,3462.9,0.817]
[1719894184448,2.4343,3463.6,3462.8,0.55]
[1719894184655,2.4724,3463.2,3462.7,0.817]
[1719894184951,5.3599,3463.2,3462.8,0.55]
[1719894190758,2.8876,3463.1,3462.8,0.55]
[1719894192464,5.77495,3463.3,3462.8,0.55]
[1719894192673,2.88747,3463.3,3462.9,0.817]
[1719894193333,2.8875,3463.2,3462.9,0.817]
[1719894194872,2.88747,3463.3,3462.9,0.817]
[1719894195870,2.2655,3464.0,3462.9,0.817]
[1719894196165,0.2099638,3463.9,3463.3,0.817]
[1719894196337,0.2099638,3463.8,3463.3,0.817]
[1719894196543,2.88706,3463.8,3463.3,0.817]
[1719894196768,3.702316,3463.8,3463.3,0.817]
[1719894196971,2.88723,3463.6,3463.3,0.817]
[1719894201549,2.88709,3463.7,3463.3,0.817]
[1719894201844,2.88709,3463.7,3463.3,3.0697]
[1719894202165,2.88719,3463.6,3463.3,3.0697]
[1719894203773,2.88682,3464.1,3463.5,0.817]
[1719894204077,2.88692,3463.9,3463.5,0.817]
[1719894207272,2.88701,3463.8,3463.3,3.0697]
[1719894208450,2.88709,3463.7,3463.3,2.2527]
[1719894208646,2.88709,3463.7,3463.1,3.2208]
[1719894209276,2.88709,3463.7,3463.1,3.27854493]
[1719894210768,2.88709,3463.7,3463.1,4.18394042]
[1719894213952,2.88709,3463.7,3463.1,3.36694042]
[1719894214200,2.88709,3463.7,3463.2,0.817]
[1719894214385,2.88709,3463.7,3463.1,0.817]
[1719894215365,2.88727,3463.5,3463.1,0.817]
[1719894218501,2.88734,3463.4,3463.1,0.817]
[1719894226724,2.88742,3463.3,3463.1,0.817]
[1719894231126,2.88742,3463.3,3462.8,2.3979]
[1719894231289,2.88742,3463.3,3463.1,0.817]
[1719894240437,2.8875,3463.2,3462.5,5.35337]
[1719894240644,2.8875,3463.2,3463.1,0.817]
[1719894244215,2.88742,3463.3,3463.1,0.817]
[1719894244643,2.88726,3463.5,3463.2,2.372]
[1719894244811,2.88726,3463.5,3463.3,0.817]
[1719894245012,2.88712,3463.7,3463.3,0.817]
[1719894245221,2.88712,3463.7,3463.5,0.817]
[1719894247444,2.88716,3463.6,3463.5,0.817]
[1719894250043,2.88706,3463.8,3463.5,0.817]
[1719894252759,2.88695,3463.9,3463.5,0.817]
[1719894259394,2.887,3463.8,3463.5,0.817]
[1719894259892,2.887,3463.8,3463.3,0.817]
[1719894264996,2.88709,3463.7,3463.2,2.372]
[1719894265307,2.88709,3463.7,3463.3,0.817]
[1719894265916,2.88717,3463.6,3462.9,5.20805]
[1719894266201,2.88727,3463.5,3463.2,0.817]
[1719894266773,2.88727,3463.5,3463.0,0.817]
[1719894267391,2.88727,3463.5,3463.2,0.817]
[1719894269323,2.88733,3463.4,3463.2,0.817]
[1719894278800,2.88733,3463.4,3462.9,2.3203]
[1719894278801,2.88733,3463.4,3463.1,0.817]
[1719894289334,2.8875,3463.2,3462.6,0.84172765]
[1719894289534,2.8875,3463.2,3463.1,0.817]
[1719894310884,2.8875,3463.2,3462.7,3.48969977]
[1719894311202,2.8875,3463.2,3463.0,0.817]
[1719894313718,2.88707,3463.8,3463.1,2.4662]
[1719894313893,2.88722,3463.6,3463.3,0.817]
[1719894314417,2.88725,3463.5,3463.3,0.817]
[1719894315427,5.36025,3463.5,3462.9,2.88773]
[1719894315600,5.36025,3463.5,3463.2,0.817]
[1719894316822,2.88725,3463.5,3463.2,0.817]
[1719894318508,2.88725,3463.5,3463.1,0.817]
[1719894319524,2.88734,3463.4,3463.1,0.817]
[1719894319719,2.88744,3463.3,3462.7,3.06798977]
[1719894319937,2.88744,3463.3,3462.9,0.817]
[1719894321820,2.88751,3463.2,3462.8,0.55]
[1719894322025,2.88751,3463.2,3462.8,0.817]
[1719894323735,2.88759,3463.1,3462.6,0.55]
[1719894324021,2.88759,3463.1,3462.9,0.817]
[1719894328645,5.77492,3463.3,3462.9,0.817]
[1719894329023,2.8875,3463.2,3462.9,0.817]
[1719894331119,2.88728,3463.5,3462.9,0.817]
[1719894331455,2.88718,3463.6,3463.2,0.817]
[1719894333066,2.887,3463.8,3463.2,0.817]
[1719894333413,2.88708,3463.7,3463.2,0.817]
[1719894334929,2.88684,3464.0,3463.6,0.817]
[1719894335120,1.01656635,3463.9,3463.6,0.817]
[1719894335315,2.88684,3464.0,3463.6,0.817]
[1719894337343,2.4108,3464.1,3463.4,2.4432]
[1719894337563,2.887,3463.8,3463.4,2.4432]
[1719894337737,2.887,3463.8,3463.4,3.2602]
[1719894337934,2.88695,3463.9,3463.4,3.2602]
[1719894338269,2.4278,3464.4,3463.8,0.817]
[1719894338473,2.4278,3464.4,3463.8,2.4434]
[1719894338474,5.31431,3464.4,3463.8,2.4434]
[1719894338628,5.31431,3464.4,3463.9,0.817]
[1719894339649,5.31431,3464.4,3463.8,2.4434]
[1719894341929,2.88651,3464.4,3463.8,2.4434]
[1719894344388,2.88651,3464.4,3463.9,0.817]
[1719894344740,2.88651,3464.4,3464.1,0.817]
[1719894349479,2.88643,3464.5,3464.1,0.817]
[1719894355011,2.88628,3464.7,3464.3,0.817]
[1719894357913,2.88609,3464.9,3464.5,0.817]
[1719894358209,2.88617,3464.8,3464.5,1.13737]
[1719894358411,2.88617,3464.8,3464.5,0.817]
[1719894360412,2.88602,3465.0,3464.5,0.817]
[1719894360770,2.88602,3465.0,3464.5,1.13737]
[1719894361170,2.88611,3464.9,3464.5,0.32037]
[1719894361478,2.88611,3464.9,3464.3,0.817]
[1719894364108,2.88611,3464.9,3464.5,0.817]
[1719894367704,2.88611,3464.9,3464.7,0.817]
[1719894368441,3.0304219,3465.3,3464.7,1.13743762]
[1719894368721,3.0304219,3465.3,3464.9,0.817]
[1719894368722,2.88589,3465.2,3464.9,0.817]
[1719894369024,0.0304219,3465.3,3465.0,2.3311]
[1719894369227,0.0304219,3465.3,3465.1,0.817]
[1719894371220,0.0304219,3465.3,3465.0,2.3311]
[1719894371382,0.0304219,3465.3,3465.1,0.817]
[1719894378238,0.0304219,3465.3,3465.2,0.817]
[1719894379207,2.9161719,3465.3,3465.2,0.817]
[1719894379529,2.9161719,3465.3,3465.0,0.817]
[1719894388665,2.9161719,3465.3,3464.8,0.816715]
[1719894388861,2.9161719,3465.3,3465.1,0.817]
[1719894389066,0.0304219,3465.3,3465.2,2.3807]
[1719894391046,0.0304219,3465.3,3465.2,2.9307]
[1719894391247,0.0304219,3465.3,3465.2,3.88844523]
[1719894392386,0.0304219,3465.3,3465.2,4.70544523]
[1719894398676,0.0304219,3465.3,3465.2,7.64898753]
[1719894403710,0.0304219,3465.3,3465.2,7.59127523]
[1719894407945,0.0304219,3465.3,3465.2,10.47710523]
[1719894408721,2.2941,3466.2,3465.5,2.8855]
[1719894409048,2.2941,3466.2,3465.9,0.817]
[1719894409049,5.17912,3466.2,3465.9,0.817]
[1719894410411,2.88509,3466.1,3465.9,0.817]
[1719894410635,2.88509,3466.1,3465.8,0.817]
[1719894412044,5.17912,3466.2,3465.2,6.22419523]
[1719894412045,2.88525,3465.9,3465.2,6.22419523]
[1719894412248,2.3784,3465.8,3465.6,0.817]
[1719894417040,5.26376,3465.8,3465.6,0.817]
[1719894419548,2.88559,3465.5,3464.9,0.28217557]
[1719894419732,2.88559,3465.5,3465.4,0.817]
[1719894422911,2.88559,3465.5,3465.0,0.55]
[1719894423228,2.88559,3465.5,3465.3,0.817]
[1719894426217,2.88566,3465.4,3464.9,0.55]
[1719894426418,2.88566,3465.4,3465.3,0.817]
[1719894433435,2.88556,3465.6,3465.3,0.817]
[1719894433630,2.88556,3465.6,3465.5,0.817]
[1719894442195,2.88542,3465.7,3465.5,0.817]
[1719894448272,2.8855,3465.6,3465.5,0.817]
[1719894453201,2.88563,3465.5,3464.9,0.55]
[1719894453402,2.88563,3465.5,3465.3,0.817]
[1719894456008,2.88563,3465.5,3464.9,0.92229126]
[1719894456184,2.88563,3465.5,3465.3,0.817]
[1719894459004,2.88566,3465.4,3465.3,0.817]
[1719894490432,2.88576,3465.3,3464.9,0.55]
[1719894490627,5.27796,3465.3,3465.0,0.817]
[1719894495339,2.88576,3465.3,3465.0,0.817]
[1719894498849,2.88576,3465.3,3465.2,0.817]
[1719894507391,2.88618,3464.8,3464.2,2.3514]
[1719894507547,2.88618,3464.8,3464.5,0.817]
[1719894508281,2.88618,3464.8,3464.7,0.817]
[1719894509790,2.88605,3465.0,3464.7,0.817]
[1719894510151,2.88609,3464.9,3464.7,0.817]
[1719894513511,2.88609,3464.9,3464.3,3.28340936]
[1719894513669,2.88609,3464.9,3464.7,0.817]
[1719894515177,2.88616,3464.8,3464.7,0.817]
[1719894515391,2.88616,3464.8,3464.6,0.817]
[1719894516495,2.88625,3464.7,3464.6,0.817]
[1719894520808,2.88625,3464.7,3464.2,2.71634356]
[1719894521021,2.88625,3464.7,3464.5,0.817]
[1719894521785,2.88625,3464.7,3464.3,0.55]
[1719894522122,2.88625,3464.7,3464.4,0.817]
[1719894523103,2.88638,3464.6,3464.2,1.58995692]
[1719894523309,2.8865,3464.4,3464.3,0.817]
[1719894526323,2.88638,3464.6,3464.3,0.817]
[1719894526543,2.88638,3464.6,3464.5,0.817]
[1719894529127,2.88646,3464.5,3464.3,0.817]
[1719894530332,2.88646,3464.5,3464.0,0.29361046]
[1719894530333,2.8865,3464.4,3464.0,0.29361046]
[1719894530511,2.8865,3464.4,3463.8,2.4644]
[1719894530832,2.8865,3464.4,3464.2,0.817]
[1719894531033,2.88658,3464.3,3463.8,2.4644]
[1719894531338,2.88667,3464.2,3464.1,0.817]
[1719894535731,2.88667,3464.2,3464.0,0.817]
[1719894536649,2.88678,3464.1,3463.6,2.4985]
[1719894536824,2.88689,3464.0,3463.8,0.817]
[1719894541349,2.88689,3464.0,3463.4,5.69619538]
[1719894541557,2.88689,3464.0,3463.8,0.817]
[1719894542464,2.88691,3463.9,3463.8,0.817]
[1719894544769,2.88691,3463.9,3463.5,0.55]
[1719894544931,2.88708,3463.8,3463.6,0.817]
[1719894545129,2.88708,3463.8,3463.5,0.55]
[1719894545359,2.88708,3463.8,3463.6,0.817]
[1719894547208,2.88708,3463.7,3463.6,0.817]
[1719894552862,2.88691,3463.9,3463.6,0.817]
[1719894553080,5.23348,3464.7,3463.8,0.817]
[1719894553261,2.3472,3464.9,3464.6,0.817]
[1719894553746,2.88625,3464.7,3464.6,0.817]
[1719894555685,2.88633,3464.6,3464.4,0.817]
[1719894556047,2.88641,3464.5,3464.3,2.464]
[1719894556352,2.88641,3464.5,3464.4,0.817]
[1719894560639,2.88641,3464.5,3464.0,2.4719]
[1719894560640,2.8865,3464.4,3464.2,0.817]
[1719894562035,5.25095,3464.7,3464.2,0.817]
[1719894562229,2.88625,3464.7,3464.2,0.817]
[1719894562643,2.88647,3464.5,3464.0,2.4719]
[1719894562804,2.88647,3464.5,3464.3,0.817]
[1719894581144,2.8865,3464.4,3464.0,2.4719]
[1719894581345,2.8865,3464.4,3464.1,0.817]
[1719894582076,2.88647,3464.5,3464.1,0.817]
[1719894582378,2.88647,3464.5,3464.3,0.817]
[1719894585748,2.8865,3464.4,3464.3,0.817]
[1719894585948,2.8865,3464.4,3464.1,0.817]
[1719894586590,2.8865,3464.4,3464.0,2.4719]
[1719894586744,2.8865,3464.4,3464.1,0.817]
[1719894589457,2.88659,3464.3,3464.1,0.817]
[1719894594062,2.88666,3464.2,3464.1,0.817]
[1719894596510,2.88666,3464.2,3463.7,2.9072]
[1719894596693,2.88666,3464.2,3464.1,0.817]
[1719894601799,2.88659,3464.3,3464.1,0.817]
[1719894601800,2.8866,3464.3,3464.1,0.817]
[1719894601978,2.8866,3464.3,3464.1,3.116]
[1719894602580,2.8866,3464.3,3464.1,3.4276]
[1719894602802,2.8865,3464.4,3464.1,3.4276]
[1719894603016,2.8865,3464.4,3464.3,0.817]
[1719894604892,2.88659,3464.3,3464.1,0.817]
[1719894607318,2.8865,3464.4,3464.1,0.817]
[1719894607535,2.8865,3464.4,3463.9,2.2508]
[1719894607735,2.8865,3464.4,3464.2,0.817]
[1719894613349,2.3764,3465.2,3464.3,2.4604]
[1719894613529,2.88596,3465.1,3464.9,0.817]
[1719894614004,2.886,3465.0,3464.9,0.817]
[1719894615501,2.886,3465.0,3464.7,0.817]
[1719894617338,2.886,3465.0,3464.4,0.55]
[1719894617564,2.886,3465.0,3464.6,0.817]
[1719894618561,2.88609,3464.9,3464.6,0.817]
[1719894618762,5.24969,3464.9,3464.4,0.817]
[1719894621455,2.88619,3464.8,3464.4,0.817]
[1719894624544,2.8864,3464.6,3464.0,2.4415]
[1719894624742,2.8864,3464.6,3464.3,0.817]
[1719894625668,2.88642,3464.5,3464.3,0.817]
[1719894634803,2.88634,3464.6,3464.3,0.817]
[1719894634973,2.88634,3464.6,3464.5,0.817]
[1719894635170,2.88619,3464.8,3464.5,0.817]
[1719894635370,2.88625,3464.7,3464.5,0.817]
[1719894636306,2.88594,3465.1,3464.5,1.13721]
[1719894636507,2.886,3465.0,3464.7,0.817]
[1719894636803,2.886,3465.0,3464.7,3.234]
[1719894637538,2.88593,3465.1,3464.7,3.234]
[1719894638527,2.4991,3465.4,3464.9,0.817]
[1719894638818,2.88539,3465.8,3465.2,0.817]
[1719894639111,2.2574,3466.0,3465.4,0.817]
[1719894639112,2.88558,3465.5,3465.4,0.817]
[1719894652232,2.88542,3465.7,3465.4,0.817]
[1719894652459,2.88552,3465.6,3465.4,0.817]
[1719894653114,2.88534,3465.8,3465.4,0.817]
[1719894653314,2.88534,3465.8,3465.4,1.14755]
[1719894656016,2.88534,3465.8,3465.4,0.817]
[1719894657635,2.88534,3465.8,3465.2,2.54621084]
[1719894657850,2.88534,3465.8,3465.5,0.817]
[1719894658351,2.88542,3465.7,3465.5,0.817]
[1719894665168,2.8855,3465.6,3465.5,0.817]
[1719894670376,2.88539,3465.8,3465.5,0.817]
[1719894670767,2.88542,3465.7,3465.5,0.817]
[1719894675645,2.88527,3465.9,3465.5,0.817]
[1719894675868,2.88527,3465.9,3465.5,3.2602]
[1719894676070,2.88527,3465.9,3465.5,3.5919911]
[1719894677509,2.88527,3465.9,3465.5,3.2602]
[1719894690427,2.88527,3465.9,3465.5,2.4432]
[1719894690601,2.88527,3465.9,3465.5,0.817]
[1719894694934,2.88533,3465.8,3465.5,0.817]
[1719894700599,2.88543,3465.7,3465.5,0.817]
[1719894701466,2.8855,3465.6,3464.7,0.90527137]
[1719894701649,2.8855,3465.6,3465.4,0.817]
[1719894708431,2.88533,3465.8,3465.4,0.817]
[1719894708865,2.88543,3465.7,3465.4,0.817]
[1719894717583,2.8855,3465.6,3465.4,0.817]
[1719894717880,6.861,3466.5,3465.4,0.817]
[1719894717881,2.88535,3465.8,3465.5,2.2715]
[1719894718832,2.88535,3465.8,3465.6,0.817]
[1719894719033,2.88541,3465.7,3465.6,0.817]
[1719894719855,2.88541,3465.7,3465.5,2.2715]
[1719894722563,2.88532,3465.9,3465.6,0.817]
[1719894723072,2.88486,3466.4,3465.8,3.1121]
[1719894723274,2.88486,3466.4,3466.0,0.817]
[1719894723663,2.4942,3466.6,3466.0,0.817]
[1719894723664,2.88483,3466.5,3466.0,0.817]
[1719894724073,2.88485,3466.4,3466.0,0.817]
[1719894724459,5.37889,3466.6,3466.0,1.12821]
[1719894724669,2.88469,3466.6,3466.3,0.817]